fUST/lending_fUST_20260209
["ID","MTS","AMOUNT","RATE_DAILY","PERIOD"]
[404886917,1770649853347,-500.0,0.00050684,120]
[404886918,1770649853358,-500.0,0.00050684,120]
[404886919,1770649853368,-2499.97,0.00050684,2]
[404886920,1770649853378,-546.05,0.00050684,120]
[404886921,1770649853389,-500.0,0.00050684,120]
[404886922,1770649853399,-500.0,0.00050684,120]
[404886923,1770649853410,-802.85,0.00050684,120]
[404886924,1770649853419,-500.0,0.00050684,120]
[404886925,1770649853430,-500.0,0.00050684,120]
[404886926,1770649853439,-859.94,0.00050684,120]
[404886927,1770649853449,-500.0,0.00050684,7]
[404886928,1770649853459,-500.0,0.00050684,120]
[404886929,1770649853469,-500.0,0.00050684,8]
[404886930,1770649853480,-880.16,0.00050684,120]
[404886931,1770649853490,-500.0,0.00050684,120]
[404886932,1770649853499,-4901.28,0.00050684,2]
[404886933,1770649853508,-500.0,0.00050684,120]
[404886934,1770649853518,-500.0,0.00050684,120]
[404886935,1770649853527,-500.0,0.00050684,120]
[404886936,1770649853536,-10108.66,0.00050684,30]
[404886937,1770649853546,-469.4395381,0.00050684,120]
[404886938,1770649853555,-500.0,0.00050684,120]
[404886939,1770649853564,-368.84700066,0.00050684,120]
[404886940,1770649853574,-527.36,0.00050684,120]
[404886941,1770649853584,-500.0,0.00050684,120]
[404886942,1770649853594,-355.16110588,0.00050684,120]
[404886943,1770649853604,-500.0,0.00050684,120]
[404886944,1770649853614,-500.0,0.00050684,120]
[404886945,1770649853625,-500.0,0.00050684,120]
[404886946,1770649853636,-500.0,0.00050684,120]
[404886947,1770649853645,-500.0,0.00050684,30]
[404886948,1770649853655,-710.88,0.00050684,30]
[404886949,1770649853666,-500.0,0.00050684,120]
[404886950,1770649853675,-500.0,0.00050684,120]
[404886951,1770649853685,-500.0,0.00050684,120]
[404886952,1770649853695,-500.0,0.00050684,120]
[404886953,1770649853708,-500.0,0.00050684,120]
[404886954,1770649853717,-500.0,0.00050684,120]
[404886955,1770649853728,-500.0,0.00050684,53]
[404886956,1770649853737,-297.11824621,0.00050684,120]
[404886957,1770649853747,-500.0,0.00050684,120]
[404886958,1770649853757,-594.8,0.00050684,120]
[404886959,1770649853766,-500.0,0.00050684,120]
[404886960,1770649853775,-500.0,0.00050684,120]
[404886961,1770649853784,-564.73269533,0.00050684,2]
[404886962,1770649853794,-67827.48,0.00050684,20]
[404886963,1770649853803,-500.0,0.00050684,120]
[404886964,1770649853813,-609.92,0.00050684,120]
[404886965,1770649853824,-500.0,0.00050684,120]
[404886966,1770649853833,-300.0,0.00050684,25]
[404886967,1770649853843,-300.0,0.00050684,25]
[404886968,1770649853853,-200.0,0.00050716,120]
[404886969,1770649853863,-200.0,0.00050763,120]
[404886970,1770649853872,-172.0,0.00050766,25]
[404886971,1770649853882,-515.56,0.00050783,120]
[404886972,1770649853894,-153.0,0.000508,120]
[404886973,1770649853903,-565.79,0.00050821,33]
[404886974,1770649853914,-797.77,0.00050958,120]
[404886975,1770649853923,-500.0,0.00050958,120]
[404886976,1770649853933,-500.0,0.00050958,2]
[404886977,1770649853942,-500.0,0.00050958,120]
[404886978,1770649853952,-314.90468961,0.00050958,120]
[404886979,1770649853961,-500.0,0.00050958,120]
[404886980,1770649853970,-2499.97,0.00050958,2]
[404886981,1770649853980,-546.05,0.00050958,120]
[404886982,1770649853989,-500.0,0.00050958,120]
[404886983,1770649853998,-500.0,0.00050958,120]
[404886984,1770649854007,-802.85,0.00050958,120]
[404886985,1770649854017,-500.0,0.00050958,120]
[404886986,1770649854027,-500.0,0.00050958,120]
[404886987,1770649854037,-859.94,0.00050958,120]
[404886988,1770649854048,-500.0,0.00050958,7]
[404886989,1770649854058,-310.933746,0.00050958,120]
[404886990,1770649854069,-500.0,0.00050958,8]
[404886991,1770649854079,-880.16,0.00050958,120]
[404886992,1770649854089,-490.94162894,0.00050958,120]
[404886993,1770649854193,-4901.28,0.00050958,2]
[404886994,1770649854205,-190.68759846,0.00050958,120]
[404886995,1770649854216,-500.0,0.00050958,120]
[404886996,1770649854226,-500.0,0.00050958,120]
[404886997,1770649854236,-10108.66,0.00050958,30]
[404886998,1770649854246,-500.0,0.00050958,120]
[404886999,1770649854257,-527.36,0.00050958,120]
[404887000,1770649854267,-500.0,0.00050958,120]
[404887001,1770649854278,-500.0,0.00050958,120]
[404887002,1770649854288,-500.0,0.00050958,120]
[404887003,1770649854298,-500.0,0.00050958,120]
[404887004,1770649854307,-500.0,0.00050958,120]
[404887005,1770649854318,-500.0,0.00050958,30]
[404887006,1770649854328,-710.88,0.00050958,30]
[404887007,1770649854337,-500.0,0.00050958,120]
[404887008,1770649854347,-500.0,0.00050958,120]
[404887009,1770649854356,-500.0,0.00050958,120]
[404887010,1770649854365,-500.0,0.00050958,120]
[404887011,1770649854375,-509.28630087,0.00050958,120]
[404887012,1770649854389,-500.0,0.00050958,120]
[404887013,1770649854399,-500.0,0.00050958,53]
[404887014,1770649854409,-500.0,0.00050958,120]
[404887015,1770649854419,-594.8,0.00050958,120]
[404887016,1770649854428,-500.0,0.00050958,120]
[404887017,1770649854438,-498.99313221,0.00050958,120]
[404887018,1770649854448,-67827.48,0.00050958,20]
[404887019,1770649854458,-400.04043899,0.00050958,120]
[404887020,1770649854467,-609.92,0.00050958,120]
[404887021,1770649854477,-500.0,0.00050958,120]
[404887022,1770649854486,-200.0,0.00050958,25]
[404887023,1770649854496,-200.0,0.00050958,25]
[404887024,1770649854506,-272.12986904,0.0005099,90]
[404887025,1770649854515,-300.0,0.0005099,120]
[404887026,1770649854524,-1516.77754698,0.00051,2]
[404887027,1770649854537,-15000.0,0.00051,120]
[404887028,1770649854546,-1000.0,0.00051,120]
[404887029,1770649854556,-200.0,0.00051026,120]
[404887030,1770649854565,-151.40915451,0.00051099,60]
[404887031,1770649854575,-151.46969395,0.00051099,60]
[404887032,1770649854585,-151.40915451,0.00051099,60]
[404887033,1770649854594,-151.40915451,0.00051099,60]
[404887034,1770649854603,-151.40915451,0.00051099,60]
[404887035,1770649854613,-151.40915451,0.00051099,60]
[404887036,1770649854624,-151.42428786,0.00051099,60]
[404887037,1770649854638,-151.42428786,0.00051099,60]
[404887038,1770649854648,-151.42428786,0.00051099,60]
[404887039,1770649854657,-151.42428786,0.00051099,60]
[404887040,1770649854669,-151.42428786,0.00051099,60]
[404887041,1770649854678,-151.42428786,0.00051099,60]
[404887042,1770649854689,-151.42428786,0.00051099,60]
[404887043,1770649854709,-151.42428786,0.00051099,60]
[404887044,1770649854731,-151.42428786,0.00051099,60]
[404887045,1770649854744,-151.42428786,0.00051099,60]
[404887046,1770649854755,-151.42428786,0.00051099,60]
[404887047,1770649854764,-151.42428786,0.00051099,60]
[404887048,1770649854774,-151.42428786,0.00051099,60]
[404887049,1770649854785,-184.59544958,0.00051099,60]
[404887050,1770649854796,-400001.56596758,0.000511,120]
[404887051,1770649854806,-797.77,0.00051232,120]
[404887052,1770649854817,-500.0,0.00051232,120]
[404887053,1770649854828,-274.59977428,0.00051232,2]
[404887054,1770649854837,-500.0,0.00051232,120]
[404887055,1770649854847,-500.0,0.00051232,120]
[404887056,1770649854856,-2499.97,0.00051232,2]
[404887057,1770649854865,-546.05,0.00051232,120]
[404887058,1770649854874,-500.0,0.00051232,120]
[404887059,1770649854884,-500.0,0.00051232,120]
[404887060,1770649854894,-802.85,0.00051232,120]
[404887061,1770649854903,-500.0,0.00051232,120]
[404887062,1770649854913,-500.0,0.00051232,120]
[404887063,1770649854923,-859.94,0.00051232,120]
[404887064,1770649854932,-500.0,0.00051232,7]
[404887065,1770649854942,-500.0,0.00051232,8]
[404887066,1770649854952,-880.16,0.00051232,120]
[404887067,1770649854961,-4901.28,0.00051232,2]
[404887068,1770649854971,-500.0,0.00051232,120]
[404887069,1770649854980,-500.0,0.00051232,120]
[404887070,1770649854989,-10108.66,0.00051232,30]
[404887071,1770649854999,-500.0,0.00051232,120]
[404887072,1770649855009,-527.36,0.00051232,120]
[404887073,1770649855018,-500.0,0.00051232,120]
[404887074,1770649855028,-500.0,0.00051232,120]
[404887075,1770649855038,-500.0,0.00051232,120]
[404887076,1770649855047,-553.30105514,0.00051232,120]
[404887077,1770649855057,-500.0,0.00051232,120]
[404887078,1770649855066,-500.0,0.00051232,30]
[404887079,1770649855076,-710.88,0.00051232,30]
[404887080,1770649855085,-500.0,0.00051232,120]
[404887081,1770649855094,-500.0,0.00051232,120]
[404887082,1770649855104,-503.167425,0.00051232,120]
[404887083,1770649855114,-500.0,0.00051232,120]
[404887084,1770649855124,-500.0,0.00051232,120]
[404887085,1770649855136,-500.0,0.00051232,53]
[404887086,1770649855146,-418.40111973,0.00051232,120]
[404887087,1770649855156,-594.8,0.00051232,120]
[404887088,1770649855165,-500.0,0.00051232,120]
[404887089,1770649855175,-67827.48,0.00051232,20]
[404887090,1770649855186,-609.92,0.00051232,120]
[404887091,1770649855196,-500.0,0.00051232,120]
[404887092,1770649855206,-10000.0,0.00051246,120]
[404887093,1770649855216,-58439.19050909,0.0005148,2]
[404887094,1770649855226,-797.77,0.00051506,120]
[404887095,1770649855236,-500.0,0.00051506,120]
[404887096,1770649855245,-500.0,0.00051506,120]
[404887097,1770649855255,-500.0,0.00051506,120]
[404887098,1770649855264,-2499.97,0.00051506,2]
[404887099,1770649855274,-546.05,0.00051506,120]
[404887100,1770649855283,-500.0,0.00051506,120]
[404887101,1770649855293,-565.79,0.00051506,36]
[404887102,1770649855302,-500.0,0.00051506,120]
[404887103,1770649855312,-802.85,0.00051506,120]
[404887104,1770649855321,-500.0,0.00051506,120]
[404887105,1770649855332,-257.04341605,0.00051506,120]
[404887106,1770649855342,-859.94,0.00051506,120]
[404887107,1770649855353,-500.0,0.00051506,7]
[404887108,1770649855363,-500.0,0.00051506,8]
[404887109,1770649855373,-880.16,0.00051506,120]
[404887110,1770649855386,-4901.28,0.00051506,2]
[404887111,1770649855396,-500.0,0.00051506,120]
[404887112,1770649855406,-500.0,0.00051506,120]
[404887113,1770649855415,-10108.66,0.00051506,30]
[404887114,1770649855425,-500.0,0.00051506,120]
[404887115,1770649855435,-527.36,0.00051506,120]
[404887116,1770649855445,-500.0,0.00051506,120]
[404887117,1770649855455,-500.0,0.00051506,120]
[404887118,1770649855464,-500.0,0.00051506,120]
[404887119,1770649855474,-500.0,0.00051506,120]
[404887120,1770649855482,-295.16341296,0.00051506,30]
[404887121,1770649855492,-710.88,0.00051506,30]
[404887122,1770649855501,-500.0,0.00051506,120]
[404887123,1770649855511,-500.0,0.00051506,120]
[404887124,1770649855521,-517.34208233,0.00051506,120]
[404887125,1770649855531,-500.0,0.00051506,120]
[404887126,1770649855541,-544.41204124,0.00051506,53]
[404887127,1770649855550,-594.8,0.00051506,120]
[404887128,1770649855559,-500.0,0.00051506,120]
[404887129,1770649855569,-67827.48,0.00051506,20]
[404887130,1770649855579,-609.92,0.00051506,120]
[404887131,1770649855589,-525.13254905,0.00051506,120]
[404887132,1770649855599,-153.0,0.000516,120]
[404887133,1770649855608,-500.0,0.00051643,25]
[404887134,1770649855618,-219.91197274,0.00051726,7]
[404887135,1770649855631,-797.77,0.0005178,120]
[404887136,1770649855651,-500.0,0.0005178,120]
[404887137,1770649855671,-501.96212254,0.0005178,120]
[404887138,1770649855686,-500.0,0.0005178,120]
[404887139,1770649855697,-2499.97,0.0005178,2]
[404887140,1770649855708,-546.05,0.0005178,120]
[404887141,1770649855717,-516.76501192,0.0005178,120]
[404887142,1770649855729,-500.0,0.0005178,120]
[404887143,1770649855739,-802.85,0.0005178,120]
[404887144,1770649855748,-500.0,0.0005178,120]
[404887145,1770649855759,-859.94,0.0005178,120]
[404887146,1770649855768,-500.92604484,0.0005178,7]
[404887147,1770649855778,-500.0,0.0005178,8]
[404887148,1770649855787,-880.16,0.0005178,120]
[404887149,1770649855797,-4901.28,0.0005178,2]
[404887150,1770649855807,-500.0,0.0005178,120]
[404887151,1770649855816,-500.0,0.0005178,120]
[404887152,1770649855825,-10108.66,0.0005178,30]
[404887153,1770649855835,-438.45399018,0.0005178,120]
[404887154,1770649855845,-527.36,0.0005178,120]
[404887155,1770649855854,-500.0,0.0005178,120]
[404887156,1770649855864,-388.40187784,0.0005178,120]
[404887157,1770649855874,-500.0,0.0005178,120]
[404887158,1770649855885,-500.0,0.0005178,120]
[404887159,1770649855895,-710.88,0.0005178,30]
[404887160,1770649855904,-500.0,0.0005178,120]
[404887161,1770649855913,-500.0,0.0005178,120]
[404887162,1770649855923,-500.0,0.0005178,120]
[404887163,1770649855932,-594.8,0.0005178,120]
[404887164,1770649855941,-500.0,0.0005178,120]
[404887165,1770649855951,-67827.48,0.0005178,20]
[404887166,1770649855961,-609.92,0.0005178,120]
[404887167,1770649855970,-515.56,0.00051871,120]
[404887168,1770649855979,-518.91367512,0.00052,120]
[404887169,1770649855988,-608.5461888,0.00052,120]
[404887170,1770649855997,-551.15889452,0.00052,120]
[404887171,1770649856007,-250.0,0.00052,120]
[404887172,1770649856017,-1023.0,0.00052,30]
[404887173,1770649856026,-2637.0,0.00052,120]
[404887174,1770649856036,-1000.0,0.00052,120]
[404887175,1770649856046,-2469.78,0.00052,14]
[404887176,1770649856063,-797.77,0.00052054,120]
[404887177,1770649856085,-500.0,0.00052054,120]
[404887178,1770649856102,-500.0,0.00052054,120]
[404887179,1770649856114,-2499.97,0.00052054,2]
[404887180,1770649856125,-546.05,0.00052054,120]
[404887181,1770649856139,-500.0,0.00052054,120]
[404887182,1770649856149,-802.85,0.00052054,120]
[404887183,1770649856162,-500.0,0.00052054,120]
[404887184,1770649856173,-859.94,0.00052054,120]
[404887185,1770649856184,-344.18205056,0.00052054,8]
[404887186,1770649856194,-880.16,0.00052054,120]
[404887187,1770649856205,-4901.28,0.00052054,2]
[404887188,1770649856216,-500.0,0.00052054,120]
[404887189,1770649856229,-500.0,0.00052054,120]
[404887190,1770649856240,-10108.66,0.00052054,30]
[404887191,1770649856252,-527.36,0.00052054,120]
[404887192,1770649856262,-500.0,0.00052054,120]
[404887193,1770649856273,-436.66854779,0.00052054,120]
[404887194,1770649856282,-500.0,0.00052054,120]
[404887195,1770649856294,-710.88,0.00052054,30]
[404887196,1770649856303,-500.0,0.00052054,120]
[404887197,1770649856313,-500.0,0.00052054,120]
[404887198,1770649856323,-500.0,0.00052054,120]
[404887199,1770649856334,-594.8,0.00052054,120]
[404887200,1770649856346,-500.0,0.00052054,120]
[404887201,1770649856357,-235.70006905,0.00052054,120]
[404887202,1770649856369,-67827.48,0.00052054,20]
[404887203,1770649856380,-609.92,0.00052054,120]
[404887204,1770649856392,-838.72,0.000521,14]
[404887205,1770649856401,-300.0,0.00052191,25]
[404887206,1770649856411,-565.79,0.00052191,39]
[404887207,1770649856421,-371.4233838,0.000523,5]
[404887208,1770649856430,-797.77,0.00052328,120]
[404887209,1770649856439,-500.0,0.00052328,120]
[404887210,1770649856450,-500.0,0.00052328,120]
[404887211,1770649856460,-2499.97,0.00052328,2]
[404887212,1770649856469,-546.05,0.00052328,120]
[404887213,1770649856479,-500.0,0.00052328,120]
[404887214,1770649856489,-802.85,0.00052328,120]
[404887215,1770649856498,-500.0,0.00052328,120]
[404887216,1770649856508,-859.94,0.00052328,120]
[404887217,1770649856518,-880.16,0.00052328,120]
[404887218,1770649856527,-4901.28,0.00052328,2]
[404887219,1770649856537,-500.0,0.00052328,120]
[404887220,1770649856547,-500.0,0.00052328,120]
[404887221,1770649856556,-10108.66,0.00052328,30]
[404887222,1770649856566,-527.36,0.00052328,120]
[404887223,1770649856576,-500.0,0.00052328,120]
[404887224,1770649856673,-500.0,0.00052328,120]
[404887225,1770649856683,-710.88,0.00052328,30]
[404887226,1770649856693,-439.99685519,0.00052328,120]
[404887227,1770649856704,-500.0,0.00052328,120]
[404887228,1770649856713,-500.0,0.00052328,120]
[404887229,1770649856725,-594.8,0.00052328,120]
[404887230,1770649856735,-500.0,0.00052328,120]
[404887231,1770649856746,-67827.48,0.00052328,20]
[404887232,1770649856756,-609.92,0.00052328,120]
[404887233,1770649856765,-372.795216,0.00052376,2]
[404887234,1770649856774,-200.0,0.00052411,120]
[404887235,1770649856784,-153.0,0.000525,120]
[404887236,1770649856793,-797.77,0.00052602,120]
[404887237,1770649856802,-500.0,0.00052602,120]
[404887238,1770649856812,-500.0,0.00052602,120]
[404887239,1770649856822,-2499.97,0.00052602,2]
[404887240,1770649856832,-546.05,0.00052602,120]
[404887241,1770649856842,-500.0,0.00052602,120]
[404887242,1770649856851,-802.85,0.00052602,120]
[404887243,1770649856861,-500.0,0.00052602,120]
[404887244,1770649856871,-859.94,0.00052602,120]
[404887245,1770649856880,-880.16,0.00052602,120]
[404887246,1770649856893,-4901.28,0.00052602,2]
[404887247,1770649856903,-500.0,0.00052602,120]
[404887248,1770649856913,-307.58755803,0.00052602,120]
[404887249,1770649856923,-10108.66,0.00052602,30]
[404887250,1770649856933,-527.36,0.00052602,120]
[404887251,1770649856942,-500.0,0.00052602,120]
[404887252,1770649856952,-500.0,0.00052602,120]
[404887253,1770649856962,-710.88,0.00052602,30]
[404887254,1770649856972,-649.49114217,0.00052602,120]
[404887255,1770649856981,-305.10754258,0.00052602,120]
[404887256,1770649856991,-594.8,0.00052602,120]
[404887257,1770649857000,-500.0,0.00052602,120]
[404887258,1770649857010,-67827.48,0.00052602,20]
[404887259,1770649857020,-609.92,0.00052602,120]
[404887260,1770649857030,-251.4516135,0.00052684,60]
[404887261,1770649857039,-200.0,0.00052739,25]
[404887262,1770649857049,-797.77,0.00052876,120]
[404887263,1770649857059,-500.0,0.00052876,120]
[404887264,1770649857070,-614.95097856,0.00052876,120]
[404887265,1770649857080,-2499.97,0.00052876,2]
[404887266,1770649857090,-546.05,0.00052876,120]
[404887267,1770649857101,-565.79,0.00052876,42]
[404887268,1770649857111,-500.0,0.00052876,120]
[404887269,1770649857121,-802.85,0.00052876,120]
[404887270,1770649857131,-500.0,0.00052876,120]
[404887271,1770649857142,-859.94,0.00052876,120]
[404887272,1770649857152,-880.16,0.00052876,120]
[404887273,1770649857162,-4901.28,0.00052876,2]
[404887274,1770649857172,-500.0,0.00052876,120]
[404887275,1770649857182,-10108.66,0.00052876,30]
[404887276,1770649857192,-527.36,0.00052876,120]
[404887277,1770649857202,-500.0,0.00052876,120]
[404887278,1770649857212,-212.68544639,0.00052876,120]
[404887279,1770649857222,-710.88,0.00052876,30]
[404887280,1770649857232,-594.8,0.00052876,120]
[404887281,1770649857241,-500.0,0.00052876,120]
[404887282,1770649857252,-67827.48,0.00052876,20]
[404887283,1770649857261,-609.92,0.00052876,120]
[404887284,1770649857270,-923.67300165,0.000529,120]
[404887285,1770649857280,-515.56,0.00052959,120]
[404887286,1770649857289,-1000.0,0.00053,120]
[404887287,1770649857300,-104175.74917825,0.00053013,120]
[404887288,1770649857310,-797.77,0.0005315,120]
[404887289,1770649857320,-500.0,0.0005315,120]
[404887290,1770649857331,-2499.97,0.0005315,2]
[404887291,1770649857340,-546.05,0.0005315,120]
[404887292,1770649857350,-589.32608689,0.0005315,120]
[404887293,1770649857359,-802.85,0.0005315,120]
[404887294,1770649857369,-500.0,0.0005315,120]
[404887295,1770649857379,-859.94,0.0005315,120]
[404887296,1770649857389,-880.16,0.0005315,120]
[404887297,1770649857400,-4901.28,0.0005315,2]
[404887298,1770649857409,-326.96733883,0.0005315,120]
[404887299,1770649857419,-10108.66,0.0005315,30]
[404887300,1770649857428,-527.36,0.0005315,120]
[404887301,1770649857438,-500.0,0.0005315,120]
[404887302,1770649857447,-710.88,0.0005315,30]
[404887303,1770649857456,-594.8,0.0005315,120]
[404887304,1770649857465,-500.0,0.0005315,120]
[404887305,1770649857475,-67827.48,0.0005315,20]
[404887306,1770649857484,-609.92,0.0005315,120]
[404887307,1770649857494,-50000.0,0.0005327,120]
[404887308,1770649857504,-153.0,0.000533,120]
[404887309,1770649857514,-50000.0,0.0005337,120]
[404887310,1770649857523,-797.77,0.00053424,120]
[404887311,1770649857534,-500.0,0.00053424,120]
[404887312,1770649857543,-2499.97,0.00053424,2]
[404887313,1770649857553,-546.05,0.00053424,120]
[404887314,1770649857563,-802.85,0.00053424,120]
[404887315,1770649857573,-397.48076838,0.00053424,120]
[404887316,1770649857583,-859.94,0.00053424,120]
[404887317,1770649857592,-880.16,0.00053424,120]
[404887318,1770649857601,-4901.28,0.00053424,2]
[404887319,1770649857611,-10108.66,0.00053424,30]
[404887320,1770649857621,-527.36,0.00053424,120]
[404887321,1770649857635,-500.0,0.00053424,120]
[404887322,1770649857645,-710.88,0.00053424,30]
[404887323,1770649857654,-594.8,0.00053424,120]
[404887324,1770649857665,-500.0,0.00053424,120]
[404887325,1770649857675,-67827.48,0.00053424,20]
[404887326,1770649857684,-609.92,0.00053424,120]
[404887327,1770649857693,-200.0,0.00053428,120]
[404887328,1770649857703,-50000.0,0.0005347,120]
[404887329,1770649857715,-200.0,0.000535,120]
[404887330,1770649857724,-565.79,0.00053561,45]
[404887331,1770649857733,-797.77,0.00053698,120]
[404887332,1770649857744,-500.0,0.00053698,120]
[404887333,1770649857753,-2499.97,0.00053698,2]
[404887334,1770649857763,-546.05,0.00053698,120]
[404887335,1770649857772,-802.85,0.00053698,120]
[404887336,1770649857781,-859.94,0.00053698,120]
[404887337,1770649857790,-880.16,0.00053698,120]
[404887338,1770649857800,-4901.28,0.00053698,2]
[404887339,1770649857810,-10108.66,0.00053698,30]
[404887340,1770649857819,-527.36,0.00053698,120]
[404887341,1770649857829,-500.0,0.00053698,120]
[404887342,1770649857839,-710.88,0.00053698,30]
[404887343,1770649857848,-594.8,0.00053698,120]
[404887344,1770649857858,-500.0,0.00053698,120]
[404887345,1770649857867,-67827.48,0.00053698,20]
[404887346,1770649857877,-609.92,0.00053698,120]
[404887347,1770649857887,-10000.0,0.00053946,120]
[404887348,1770649857896,-797.77,0.00053972,120]
[404887349,1770649857906,-500.0,0.00053972,120]
[404887350,1770649857916,-2499.97,0.00053972,2]
[404887351,1770649857925,-546.05,0.00053972,120]
[404887352,1770649857935,-802.85,0.00053972,120]
[404887353,1770649857944,-859.94,0.00053972,120]
[404887354,1770649857954,-880.16,0.00053972,120]
[404887355,1770649857963,-4901.28,0.00053972,2]
[404887356,1770649857974,-10108.66,0.00053972,30]
[404887357,1770649857983,-527.36,0.00053972,120]
[404887358,1770649857993,-500.0,0.00053972,120]
[404887359,1770649858003,-710.88,0.00053972,30]
[404887360,1770649858012,-594.8,0.00053972,120]
[404887361,1770649858022,-500.0,0.00053972,120]
[404887362,1770649858031,-67827.48,0.00053972,20]
[404887363,1770649858041,-609.92,0.00053972,120]
[404887364,1770649858050,-250.0,0.00054,120]
[404887365,1770649858060,-233.20683246,0.00054,120]
[404887366,1770649858070,-2469.78,0.00054,14]
[404887367,1770649858080,-50000.0,0.0005405,120]
[404887368,1770649858089,-50000.0,0.0005407,120]
[404887369,1770649858098,-200.0,0.00054088,120]
[404887370,1770649858107,-153.0,0.000541,120]
[404887371,1770649858116,-838.72,0.000541,14]
[404887372,1770649858126,-50000.0,0.0005412,120]
[404887373,1770649858137,-797.77,0.00054246,120]
[404887374,1770649858147,-456.05916529,0.00054246,120]
[404887375,1770649858156,-2499.97,0.00054246,2]
[404887376,1770649858166,-546.05,0.00054246,120]
[404887377,1770649858176,-565.79,0.00054246,48]
[404887378,1770649858188,-802.85,0.00054246,120]
[404887379,1770649858197,-859.94,0.00054246,120]
[404887380,1770649858207,-880.16,0.00054246,120]
[404887381,1770649858217,-4901.28,0.00054246,2]
[404887382,1770649858227,-10108.66,0.00054246,30]
[404887383,1770649858238,-527.36,0.00054246,120]
[404887384,1770649858249,-500.0,0.00054246,120]
[404887385,1770649858259,-710.88,0.00054246,30]
[404887386,1770649858269,-594.8,0.00054246,120]
[404887387,1770649858279,-500.0,0.00054246,120]
[404887388,1770649858288,-67827.48,0.00054246,20]
[404887389,1770649858300,-609.92,0.00054246,120]
[404887390,1770649858309,-724.15799502,0.00054356,120]
[404887391,1770649858319,-797.77,0.0005452,120]
[404887392,1770649858330,-2499.97,0.0005452,2]
[404887393,1770649858340,-546.05,0.0005452,120]
[404887394,1770649858350,-802.85,0.0005452,120]
[404887395,1770649858359,-859.94,0.0005452,120]
[404887396,1770649858369,-880.16,0.0005452,120]
[404887397,1770649858380,-4901.28,0.0005452,2]
[404887398,1770649858390,-10108.66,0.0005452,30]
[404887399,1770649858400,-527.36,0.0005452,120]
[404887400,1770649858409,-500.0,0.0005452,120]
[404887401,1770649858419,-710.88,0.0005452,30]
[404887402,1770649858428,-594.8,0.0005452,120]
[404887403,1770649858438,-500.0,0.0005452,120]
[404887404,1770649858447,-67827.48,0.0005452,20]
[404887405,1770649858457,-609.92,0.0005452,120]
[404887406,1770649858466,-529.84333033,0.00054625,30]
[404887407,1770649858475,-10000.0,0.00054632,120]
[404887408,1770649858485,-500.0,0.00054794,120]
[404887409,1770649858494,-364.48424462,0.00054794,120]
[404887410,1770649858504,-797.77,0.00054794,120]
[404887411,1770649858514,-2499.97,0.00054794,2]
[404887412,1770649858524,-546.05,0.00054794,120]
[404887413,1770649858534,-802.85,0.00054794,120]
[404887414,1770649858543,-859.94,0.00054794,120]
[404887415,1770649858553,-880.16,0.00054794,120]
[404887416,1770649858563,-4901.28,0.00054794,2]